bitfinex/quotes_ETHUSD_20251218
["timestamp","ask_amount","ask_price","bid_price","bid_amount"]
[1766061572065,1.86213,2876.3,2875.7,3.82551034]
[1766061572265,0.22383,2876.3,2875.8,0.3481]
[1766061572665,0.22383,2876.3,2875.9,0.3481]
[1766061573500,0.22383,2876.3,2875.8,0.06608696]
[1766061573798,0.22383,2876.3,2875.8,0.41418696]
[1766061574196,0.22383,2876.3,2876.0,1.6207]
[1766061574498,0.22383,2876.3,2876.1,0.3481]
[1766061574873,0.22383,2876.3,2875.9,0.3481]
[1766061575968,0.22383,2876.3,2875.9,3.82526553]
[1766061576175,0.6,2876.5,2876.0,0.3481]
[1766061576389,0.6,2876.5,2876.0,1.68678696]
[1766061576567,0.002,2876.3,2876.1,0.3481]
[1766061576773,0.6,2876.5,2876.3,0.3481]
[1766061576774,0.18473396,2876.5,2876.3,0.3481]
[1766061577095,0.002,2876.8,2876.3,0.3481]
[1766061577096,0.00123396,2876.8,2876.3,0.3481]
[1766061577297,0.00123396,2876.8,2876.4,0.3481]
[1766061577497,0.00123396,2876.8,2876.0,0.06608696]
[1766061577699,1.63953396,2876.8,2876.0,0.41418696]
[1766061578000,1.6383,2876.7,2876.0,0.41418696]
[1766061578172,1.67306582,2876.7,2875.8,0.41418696]
[1766061578376,1.6383,2876.5,2875.8,0.3481]
[1766061579101,1.6383,2876.5,2875.8,1.6207]
[1766061579285,1.6383,2876.5,2875.9,0.3481]
[1766061579598,0.21933,2876.4,2875.9,0.3481]
[1766061579785,0.21933,2876.4,2876.0,1.9688]
[1766061579977,2.26658087,2876.8,2876.1,0.3481]
[1766061579978,0.554,2876.6,2876.1,0.3481]
[1766061580179,1.6383,2876.7,2876.1,0.3481]
[1766061580380,1.63953396,2876.8,2875.9,1.6207]
[1766061580702,1.6383,2876.6,2875.9,1.9688]
[1766061581599,1.6383,2876.6,2875.7,0.555]
[1766061581806,1.6383,2876.4,2875.7,0.9031]
[1766061582104,1.6383,2876.4,2875.8,0.3481]
[1766061582773,1.8902,2876.2,2875.4,0.3649]
[1766061583008,1.8902,2876.2,2875.2,0.06608696]
[1766061583172,1.8902,2876.0,2875.2,0.06608696]
[1766061583377,1.8902,2875.8,2874.8,0.3649]
[1766061583682,0.58876582,2875.9,2874.5,0.001]
[1766061583683,2.35458023,2875.4,2874.5,0.001]
[1766061583882,1.8902,2875.2,2874.5,0.001]
[1766061584080,1.92496582,2875.2,2874.1,0.3649]
[1766061584281,2.25985083,2875.2,2874.2,0.63668409]
[1766061584488,0.405504,2875.1,2874.5,0.001]
[1766061584672,0.36965083,2875.2,2874.0,0.62008696]
[1766061584673,1.92496582,2875.0,2874.0,0.62008696]
[1766061585006,1.8902,2874.8,2874.0,0.06608696]
[1766061585208,1.8902,2874.8,2874.0,3.54551455]
[1766061585403,1.8902,2874.8,2874.1,0.35455146]
[1766061585904,0.554,2874.9,2874.2,0.3649]
[1766061586279,1.8902,2875.0,2874.2,0.3649]
[1766061586480,0.554,2874.8,2874.2,0.3649]
[1766061587509,0.33488501,2875.2,2874.4,1.9024]
[1766061587806,0.554,2875.1,2874.5,0.3649]
[1766061588709,1.8902,2875.3,2874.6,0.3649]
[1766061589008,0.03476582,2875.2,2874.4,0.26293566]
[1766061589192,0.554,2875.4,2874.4,0.26293566]
[1766061589193,1.8902,2875.1,2874.4,0.26293566]
[1766061589397,1.8902,2875.1,2874.5,0.41068689]
[1766061590103,1.8902,2875.1,2874.4,0.1968487]
[1766061590481,1.8902,2875.1,2874.5,0.3649]
[1766061591617,2.4442,2875.1,2874.5,0.3649]
[1766061592105,1.8902,2875.4,2874.6,0.3649]
[1766061592308,3.47745032,2875.7,2874.9,0.3649]
[1766061592309,0.46438023,2875.7,2874.9,0.3649]
[1766061592478,1.8902,2875.8,2874.7,0.06608696]
[1766061592479,1.01838023,2875.8,2874.7,0.06608696]
[1766061592682,2.35458023,2875.6,2874.7,0.43098696]
[1766061592903,1.8902,2875.6,2874.8,0.6536387]
[1766061593307,1.8902,2875.6,2874.9,0.3649]
[1766061595015,2.35458023,2875.6,2874.9,0.3649]
[1766061595522,0.554,2875.8,2874.9,2.33338696]
[1766061595523,4.49569848,2875.8,2874.9,2.33338696]
[1766061595692,4.49569848,2875.8,2875.0,0.3649]
[1766061595886,1.8902,2875.7,2875.0,0.3649]
[1766061596295,2.90858023,2875.7,2875.1,0.3649]
[1766061596612,0.46438023,2875.9,2875.2,1.9024]
[1766061596820,0.24789658,2876.1,2875.4,0.43098696]
[1766061596821,2.4442,2876.1,2875.4,0.43098696]
[1766061596989,1.8902,2876.0,2875.4,0.06608696]
[1766061598413,1.8902,2876.0,2875.4,0.43098696]
[1766061600693,1.8902,2876.0,2875.4,0.06608696]
[1766061600894,1.8922,2876.0,2875.4,0.06608696]
[1766061601606,0.002,2876.0,2875.6,0.3404]
[1766061601809,0.0012,2876.4,2875.9,0.3404]
[1766061602136,0.00123396,2876.8,2876.1,1.908]
[1766061602294,2.5585,2877.0,2875.9,0.62008696]
[1766061602295,0.6,2877.0,2876.3,0.06608696]
[1766061602498,0.6,2877.0,2876.7,0.3404]
[1766061602907,0.6,2877.0,2876.4,0.3404]
[1766061603142,2.5585,2877.0,2876.4,0.97492966]
[1766061603310,0.6,2877.0,2876.5,2.2484]
[1766061603646,0.6,2877.0,2876.6,0.3404]
[1766061604968,0.6,2877.0,2876.3,4.09671163]
[1766061604969,2.5585,2877.0,2876.3,0.62008696]
[1766061605243,2.5585,2877.0,2876.3,4.09676581]
[1766061605544,0.6,2877.0,2876.5,0.3404]
[1766061607016,0.6,2877.0,2876.1,0.06608696]
[1766061607017,1.9585,2876.9,2876.1,0.3404]
[1766061607210,2.5125,2876.9,2876.1,0.3404]
[1766061607405,1.9585,2876.9,2876.1,0.3404]
[1766061607606,1.9585,2876.9,2876.2,0.3404]
[1766061607806,2.61754033,2876.9,2876.2,0.3404]
[1766061608515,2.61754033,2876.9,2876.3,0.3404]
[1766061608735,1.154,2877.0,2876.1,0.3404]
[1766061608935,0.602,2877.0,2876.4,0.3404]
[1766061609563,0.602,2877.0,2876.4,0.06608696]
[1766061609564,0.227,2877.0,2876.4,0.06608696]
[1766061609850,0.002,2877.1,2876.6,0.3404]
[1766061610223,0.002,2877.1,2876.4,0.06608696]
[1766061610418,0.002,2877.1,2876.6,0.3404]
[1766061610660,0.002,2877.1,2876.7,0.3404]
[1766061611150,0.002,2877.1,2876.8,0.3404]
[1766061613362,0.002,2877.2,2876.8,0.3404]
[1766061613543,0.002,2877.2,2876.9,0.3574]
[1766061614463,0.002,2877.2,2876.7,1.902]
[1766061614646,0.002,2877.2,2876.8,0.3574]
[1766061614825,0.002,2877.2,2876.9,0.3574]
[1766061615334,0.002,2877.5,2876.9,0.3574]
[1766061615534,0.002,2877.5,2877.0,0.3574]
[1766061616128,0.002,2877.5,2877.2,0.3574]
[1766061616326,0.002,2877.6,2877.1,1.902]
[1766061616649,0.002,2877.6,2877.0,0.22594]
[1766061616650,0.002,2877.6,2877.2,2.2594]
[1766061617653,2.0088,2877.6,2876.9,0.3574]
[1766061617858,2.04156582,2877.5,2876.9,0.3574]
[1766061618653,0.002,2877.6,2877.1,0.3574]
[1766061618960,0.002,2877.6,2877.2,0.3574]
[1766061619266,0.46638023,2877.6,2877.0,0.3574]
[1766061619568,0.46638023,2877.6,2877.1,0.3574]
[1766061619727,2.0068,2877.5,2876.8,0.42348696]
[1766061620327,0.002,2877.6,2877.0,0.3574]
[1766061620523,0.556,2877.6,2877.0,0.3574]
[1766061620762,0.556,2877.6,2876.8,0.06608696]
[1766061620763,2.0068,2877.5,2876.8,0.42348696]
[1766061620931,2.0068,2877.3,2876.7,0.554]
[1766061621534,2.0068,2877.3,2876.7,0.9114]
[1766061623051,2.0068,2877.3,2876.8,0.3574]
[1766061623249,2.0088,2877.6,2876.8,1.902]
[1766061623453,0.554,2877.5,2876.9,0.3574]
[1766061623830,2.0088,2877.6,2876.9,0.3574]
[1766061624036,2.5628,2877.6,2877.1,0.3574]
[1766061624236,0.002,2877.6,2877.1,0.3574]
[1766061625762,0.002,2877.5,2877.1,0.3574]
[1766061626648,0.0012,2877.5,2877.2,0.3574]
[1766061628465,0.002,2877.6,2877.3,0.3574]
[1766061630972,0.002,2877.6,2877.4,0.3574]
[1766061631166,2.0068,2877.9,2877.4,0.3574]
[1766061631371,2.47118023,2878.1,2877.5,0.3574]
[1766061632372,2.47118023,2878.1,2877.3,0.3574]
[1766061632573,2.50594605,2878.1,2877.3,0.3574]
[1766061632881,2.0068,2877.9,2877.1,0.554]
[1766061633048,2.0068,2877.9,2877.1,0.9114]
[1766061633248,2.0068,2877.8,2877.1,0.9114]
[1766061633659,2.0068,2877.8,2876.9,2.32548696]
[1766061633660,8.53692887,2877.5,2876.9,2.32548696]
[1766061633865,8.53692887,2877.5,2876.9,0.42348696]
[1766061634050,1.44865039,2877.7,2876.7,2.455]
[1766061634051,6.53012887,2877.3,2876.7,2.455]
[1766061634271,6.53012887,2877.3,2876.8,0.001]
[1766061634272,8.53692887,2877.3,2876.8,0.001]
[1766061634783,8.53692887,2877.3,2876.8,0.3584]
[1766061634996,2.0068,2877.0,2876.4,0.88786719]
[1766061635148,6.53012887,2876.9,2876.4,0.42348696]
[1766061635348,8.53692887,2876.9,2876.4,0.42348696]
[1766061635764,8.53692887,2876.9,2876.4,0.06608696]
[1766061637061,6.53012887,2876.5,2876.1,0.06608696]
[1766061637367,2.0068,2876.3,2875.6,3.8359145]
[1766061637680,0.553,2876.5,2876.0,1.902]
[1766061637884,2.86049289,2876.8,2876.0,1.902]
[1766061637885,0.553,2876.6,2876.1,0.3574]
[1766061638454,2.0068,2876.5,2875.9,0.06608696]
[1766061638655,2.0068,2876.5,2875.9,0.42348696]
[1766061638954,2.0068,2876.5,2876.0,0.5802719]
[1766061639461,0.553,2876.6,2876.0,0.9376719]
[1766061640960,0.553,2876.6,2876.1,0.3574]
[1766061641165,2.0068,2876.8,2876.1,1.902]
[1766061641482,0.554,2876.7,2876.2,0.3574]
[1766061642052,2.0068,2876.8,2876.2,0.3574]
[1766061642254,0.554,2876.7,2876.2,0.3574]
[1766061642448,0.554,2876.7,2876.2,0.98907219]
[1766061643973,0.554,2877.0,2876.5,0.344]
[1766061644282,3.47543222,2877.4,2876.6,2.3551]
[1766061644283,1.01838023,2877.4,2876.6,2.3551]
[1766061644471,2.0594,2877.4,2876.7,0.344]
[1766061644675,0.554,2877.3,2876.7,0.344]
[1766061645192,2.0594,2877.4,2876.8,0.344]
[1766061645484,2.6134,2877.4,2876.8,0.344]
[1766061646110,2.6134,2877.4,2876.1,0.41008696]
[1766061646111,8.43262969,2877.3,2876.1,0.41008696]
[1766061646273,2.0594,2877.1,2876.1,0.06608696]
[1766061646477,2.0594,2876.9,2876.0,0.001]
[1766061646669,2.0594,2876.7,2875.7,0.06608696]
[1766061646869,8.39786387,2876.9,2875.7,0.06608696]
[1766061646870,2.0594,2876.5,2875.7,0.06608696]
[1766061647084,2.0594,2876.3,2875.5,0.06608696]
[1766061647298,2.0594,2876.0,2875.1,0.001]
[1766061647596,2.0594,2875.9,2875.1,0.001]
[1766061647801,2.0594,2875.7,2875.1,0.001]
[1766061648492,0.554,2875.7,2875.2,2.3551]
[1766061648687,0.554,2875.7,2875.3,0.344]
[1766061649297,2.0594,2876.0,2875.3,0.344]
[1766061649600,0.554,2875.8,2875.3,0.344]
[1766061649777,2.0594,2875.7,2875.1,3.47912388]
[1766061650095,2.0594,2875.7,2875.1,4.21588143]
[1766061650805,2.0594,2875.7,2875.2,3.47796924]
[1766061651175,2.0594,2875.7,2875.1,4.55980957]
[1766061651381,2.0586,2875.7,2875.1,4.55980957]
[1766061651867,2.0586,2875.7,2875.1,1.08175755]
[1766061652070,2.0586,2875.7,2875.1,0.345]
[1766061652669,2.0586,2875.7,2875.1,3.82312748]
[1766061653867,2.0586,2875.7,2875.1,6.95726737]
[1766061654074,2.0586,2875.7,2875.1,7.30126737]
[1766061654399,2.0586,2875.7,2875.1,3.82312748]
[1766061654595,3.94120466,2876.2,2875.1,4.48316821]
[1766061654804,2.6134,2876.1,2875.3,0.344]
[1766061655098,2.6134,2876.1,2875.5,0.344]
[1766061655099,2.0594,2876.1,2875.5,0.344]
[1766061655285,0.554,2876.0,2875.6,0.344]
[1766061655492,0.554,2876.0,2875.3,0.344]
[1766061655796,2.0594,2875.9,2875.3,0.344]
[1766061656896,2.0594,2875.9,2875.1,1.00504073]
[1766061657081,2.0594,2875.9,2875.1,0.001]
[1766061658673,2.0594,2875.7,2875.1,0.001]
[1766061660410,2.0594,2875.7,2874.7,4.14469083]
[1766061660411,2.524604,2875.6,2874.7,0.6]
[1766061660600,2.1191,2875.3,2874.0,3.83511433]
[1766061660905,0.49914605,2875.5,2874.5,0.3557]
[1766061660906,2.1191,2875.1,2874.5,0.3557]
[1766061661606,0.554,2875.0,2874.5,0.3557]
[1766061662108,0.554,2874.9,2874.6,0.39048744]
[1766061662272,2.1191,2875.4,2874.7,0.3557]
[1766061662485,0.554,2875.3,2874.7,0.3557]
[1766061662702,2.1191,2875.4,2874.7,0.3557]
[1766061662908,0.554,2875.3,2874.8,3.83420285]
[1766061663210,0.554,2875.3,2874.8,0.3557]
[1766061663407,0.554,2875.2,2874.8,0.3557]
[1766061664776,2.1191,2875.1,2874.6,3.47870836]
[1766061665024,2.1191,2875.1,2874.4,0.001]
[1766061665575,0.554,2875.0,2874.6,0.3557]
[1766061665797,0.554,2874.9,2874.6,0.3557]
[1766061665995,2.6731,2874.9,2874.4,0.001]
[1766061666196,2.6731,2874.9,2874.4,3.47989412]
[1766061666380,2.6731,2874.9,2874.5,0.001]
[1766061666804,0.554,2874.9,2874.5,0.3567]
[1766061667006,2.1191,2875.0,2874.4,0.001]
[1766061667180,0.554,2874.9,2874.4,0.3567]
[1766061667380,2.1191,2875.0,2874.4,0.001]
[1766061667580,2.6731,2874.9,2874.4,0.001]
[1766061667802,2.6731,2874.8,2874.4,0.001]
[1766061669010,2.1191,2874.7,2874.4,0.001]
[1766061671185,0.554,2874.8,2874.4,0.3567]
[1766061671395,2.1191,2875.2,2874.4,2.4715]
[1766061671706,2.1191,2875.0,2874.4,0.3567]
[1766061671906,2.1191,2875.0,2874.4,0.001]
[1766061674716,2.1191,2875.0,2874.4,0.3507]
[1766061675400,0.405504,2875.6,2874.4,0.001]
[1766061675709,2.0626,2875.4,2874.5,0.3497]
[1766061675893,2.0626,2875.2,2874.5,0.3497]
[1766061676091,0.30809802,2875.3,2874.4,0.001]
[1766061676292,0.554,2875.2,2874.7,0.3497]
[1766061676487,0.554,2875.1,2874.7,2.4861]
[1766061676682,0.554,2875.1,2874.7,0.3497]
[1766061676880,0.554,2875.1,2874.4,0.001]
[1766061677083,0.554,2875.1,2874.5,2.1364]
[1766061677314,0.554,2875.1,2874.6,0.3497]
[1766061677611,0.554,2875.1,2874.4,0.001]
[1766061677911,0.554,2875.1,2874.5,0.3497]
[1766061678090,2.0626,2875.5,2874.8,0.3497]
[1766061678283,0.554,2875.4,2874.8,0.3497]
[1766061678480,2.87826,2875.4,2874.8,0.3497]
[1766061678680,2.0626,2875.3,2874.6,3.47874293]
[1766061678917,2.0626,2875.3,2874.5,3.82849254]
[1766061679315,2.0626,2875.3,2874.5,0.3497]
[1766061679496,0.554,2875.2,2874.5,0.3497]
[1766061679697,2.0626,2875.1,2874.5,0.3497]
[1766061679920,2.0626,2875.1,2874.4,0.001]
[1766061681617,0.405504,2874.9,2873.9,0.001]
[1766061681786,2.0626,2874.7,2873.9,0.001]
[1766061681986,0.554,2874.8,2873.9,0.001]
[1766061681987,2.0626,2874.5,2873.9,0.001]
[1766061682283,2.6166,2874.4,2873.9,0.001]
[1766061683514,2.0626,2874.3,2873.9,0.001]
[1766061685928,2.0626,2874.3,2873.6,3.94428447]
[1766061686124,2.0626,2874.3,2873.6,3.47992718]
[1766061686309,2.32426,2874.3,2873.6,3.82962718]
[1766061686503,0.554,2874.2,2873.7,0.3497]
[1766061686710,2.0626,2874.6,2873.8,0.3497]
[1766061686907,2.6166,2874.5,2873.8,0.3497]
[1766061687104,2.0626,2874.4,2873.8,0.3497]
[1766061688205,2.0626,2874.4,2873.8,3.82937779]
[1766061688799,2.32426,2874.4,2873.5,3.83071146]
[1766061689132,2.32426,2874.4,2873.5,3.48101146]
[1766061689430,2.32426,2874.4,2873.6,3.47989838]
[1766061689730,2.32426,2874.4,2873.8,0.001]
[1766061689926,2.0626,2874.2,2873.5,3.94540941]
[1766061690130,2.0626,2874.0,2873.5,3.94542412]
[1766061690315,2.0626,2874.0,2873.5,3.48104389]
[1766061690521,0.554,2874.1,2873.6,0.3497]
[1766061692007,2.6166,2874.1,2873.5,0.7922896]
[1766061692322,2.0626,2874.0,2873.5,3.48101154]
[1766061692517,2.0626,2874.0,2873.5,0.001]
[1766061692700,2.0626,2874.0,2873.5,3.48102305]
[1766061693102,2.0626,2874.0,2873.5,0.001]
[1766061693499,2.0626,2874.0,2873.5,3.48106148]
[1766061694132,2.0626,2874.0,2873.5,6.96113804]
[1766061694333,0.554,2874.1,2873.5,7.31083804]
[1766061695054,0.554,2874.1,2873.6,0.3497]
[1766061695233,2.0626,2874.2,2873.6,0.3497]
[1766061695437,0.554,2874.1,2873.9,2.4861]
[1766061695622,2.0626,2874.6,2874.0,0.3497]
[1766061695930,0.554,2874.5,2874.1,0.3497]
[1766061696132,2.0646,2875.1,2874.3,2.4861]
[1766061696320,0.46438023,2874.9,2874.4,0.3497]
[1766061696828,0.554,2874.8,2874.4,0.3497]
[1766061697525,0.554,2874.8,2874.2,0.3497]
[1766061698102,2.0626,2874.7,2874.0,3.47943109]
[1766061698331,2.37069802,2874.7,2873.8,0.3497]
[1766061698518,2.37069802,2874.7,2873.9,3.47957963]
[1766061698722,2.40546384,2874.7,2873.9,3.47957963]
[1766061698927,2.40546384,2874.7,2873.8,3.82935506]
[1766061699122,2.40546384,2874.7,2873.9,3.4795884]
[1766061699325,2.0626,2874.5,2873.9,3.4795884]
[1766061699534,2.0626,2874.5,2873.7,3.47982613]
[1766061699535,2.0626,2874.3,2873.7,3.47974134]
[1766061699709,2.0626,2874.3,2873.6,2.4861]
[1766061700026,2.0626,2874.3,2873.6,0.3497]
[1766061700205,0.554,2874.4,2873.5,0.001]
[1766061700206,2.0626,2874.1,2873.5,0.001]
[1766061700405,0.554,2874.0,2873.5,0.3507]
[1766061700649,3.78674655,2874.7,2873.9,0.3497]
[1766061700650,0.30809802,2874.7,2873.9,0.3497]
[1766061700818,0.554,2874.6,2874.2,0.3497]
[1766061701143,0.554,2874.5,2874.2,0.3497]
[1766061702252,0.554,2874.5,2873.9,3.47956268]
[1766061702454,0.554,2874.5,2874.0,0.3497]
[1766061702754,0.554,2874.5,2874.0,2.0749]
[1766061703047,2.7572,2874.5,2873.8,3.47964394]
[1766061703350,2.2032,2874.4,2873.7,3.83727874]
[1766061703807,2.2032,2874.4,2873.8,3.47961343]
[1766061704237,2.2032,2874.4,2873.7,3.47983435]
[1766061704442,2.2032,2874.4,2873.8,0.3575]
[1766061706951,2.2032,2874.4,2873.6,3.47989114]
[1766061707122,2.2032,2874.4,2873.6,3.83739114]
[1766061707322,2.2032,2874.4,2873.7,3.47972732]
[1766061707523,2.2032,2874.4,2873.7,3.83722732]
[1766061708354,0.002,2874.5,2873.9,0.3575]
[1766061708514,0.002,2874.5,2874.0,0.3575]
[1766061708714,0.554,2874.4,2874.0,0.3575]
[1766061710229,0.002,2874.5,2874.0,0.3575]
[1766061710443,0.554,2874.4,2874.0,0.3575]
[1766061710951,0.554,2874.4,2874.1,0.3575]
[1766061712437,0.556,2874.4,2874.1,0.3575]
[1766061713443,0.002,2874.4,2874.1,0.3575]
[1766061713644,0.556,2874.4,2874.1,0.3575]
[1766061713815,0.556,2874.4,2873.9,3.83703973]
[1766061714013,0.556,2874.4,2873.9,4.87530405]
[1766061714224,0.556,2874.4,2873.9,4.51780405]
[1766061714440,0.556,2874.4,2874.0,3.83691315]
[1766061715740,0.556,2874.4,2874.0,5.91181315]
[1766061715941,0.556,2874.4,2874.0,5.55431315]
[1766061716140,0.556,2874.4,2874.1,0.3575]
[1766061717053,0.002,2874.4,2874.1,0.3575]
[1766061717753,0.002,2874.4,2874.0,1.00722108]
[1766061719447,0.002,2874.4,2873.9,0.3575]
[1766061719646,0.002,2874.4,2873.9,3.83704108]
[1766061719818,0.002,2874.4,2873.9,0.3575]
[1766061720016,2.1391,2874.4,2873.9,0.3575]
[1766061720653,2.1391,2874.4,2873.9,3.83708085]
[1766061721153,2.1391,2874.4,2873.8,3.47966375]
[1766061721664,1.6077,2874.2,2873.5,0.001]
[1766061721873,1.6077,2874.2,2873.6,0.3436]
[1766061721874,0.554,2874.1,2873.6,0.3436]
[1766061722153,1.6077,2874.1,2873.5,2.4494]
[1766061722358,0.554,2874.0,2873.5,2.4494]
[1766061722524,1.6124,2873.9,2873.5,0.001]
[1766061722724,1.6124,2873.9,2873.2,2.4494]
[1766061722725,1.0094,2873.8,2873.2,0.001]
[1766061722964,1.0084,2873.6,2873.0,0.001]
[1766061723119,1.0084,2873.5,2873.0,0.001]
[1766061723650,1.0137,2873.4,2873.0,0.001]
[1766061724456,1.05276582,2873.3,2872.7,0.001]
[1766061724663,1.572,2873.2,2872.7,0.001]
[1766061724826,1.017,2873.1,2872.6,0.001]
[1766061725251,0.554,2873.2,2872.4,0.601]
[1766061725252,1.01838023,2873.2,2872.4,0.601]
[1766061725459,0.405504,2873.5,2872.6,0.3436]
[1766061725460,0.5532,2873.1,2872.6,0.3436]
[1766061725663,0.554,2873.0,2872.6,0.3436]
[1766061726358,0.422,2874.0,2872.7,2.4484]
[1766061726521,1.42388423,2873.9,2873.1,2.4484]
[1766061726942,0.4278,2873.8,2873.1,0.3436]
[1766061727139,0.554,2873.7,2873.1,0.3436]
[1766061727568,3.91280795,2874.3,2873.3,0.3436]
[1766061727752,0.97243179,2874.2,2873.5,2.4484]
[1766061727959,0.27151,2874.4,2873.6,2.1048]
[1766061728121,0.554,2874.3,2873.8,0.3436]
[1766061728657,0.4394,2874.2,2873.5,3.82362317]
[1766061728853,0.4394,2874.2,2873.5,0.3436]
[1766061729058,0.47416582,2874.2,2873.3,5.58505793]
[1766061729256,0.47416582,2874.2,2873.0,5.58539269]
[1766061729455,0.4451,2874.0,2873.0,5.58539269]
[1766061729660,0.9991,2873.9,2873.0,5.92899269]
[1766061729860,0.9991,2873.9,2873.1,0.3436]
[1766061730262,0.9991,2873.9,2873.0,3.48066306]
[1766061730263,0.554,2873.9,2873.0,3.48066306]
[1766061730440,0.554,2873.9,2872.8,0.46438023]
[1766061730441,0.554,2873.9,2873.2,0.3436]
[1766061730766,0.554,2873.9,2873.3,2.4484]
[1766061732954,0.554,2873.9,2873.3,2.4684]
[1766061734468,0.4797,2874.3,2873.4,2.1904]
[1766061734769,0.4797,2874.3,2873.7,0.3636]
[1766061734770,0.554,2874.2,2873.7,0.3636]
[1766061734932,1.05191184,2874.2,2873.4,0.3636]
[1766061735136,1.52961184,2874.2,2873.4,6.03419098]
[1766061735436,1.0317,2874.1,2873.4,0.3636]
[1766061735835,3.48111085,2874.3,2873.1,3.82858552]
[1766061735836,0.554,2874.0,2873.5,2.554]
[1766061736274,0.483,2874.1,2873.1,0.34806631]
[1766061736459,0.554,2874.0,2873.5,0.3636]
[1766061736666,0.554,2874.0,2873.6,0.3636]
[1766061737270,0.95448023,2874.3,2873.6,0.3636]
[1766061737439,0.554,2874.2,2873.6,2.554]
[1766061738376,0.002,2874.0,2873.6,2.554]
[1766061738669,0.556,2874.0,2873.6,6.03390287]
[1766061738876,0.556,2874.0,2873.6,2.554]
[1766061739251,0.002,2874.0,2873.6,6.03395122]
[1766061739455,0.556,2874.0,2873.6,6.03395122]
[1766061739960,0.556,2874.0,2873.6,2.554]
[1766061742686,0.556,2874.0,2873.6,6.03394393]
[1766061742973,0.002,2874.0,2873.6,6.03394393]
[1766061743267,0.556,2874.0,2873.6,6.03394393]
[1766061743677,0.556,2874.0,2873.6,2.554]
[1766061744044,0.556,2874.0,2873.4,3.48013155]
[1766061744377,0.556,2874.0,2873.5,6.03407538]
[1766061744938,0.556,2874.0,2873.5,2.554]
[1766061746080,0.556,2874.0,2873.7,2.554]
[1766061746868,0.556,2874.0,2873.7,0.3636]
[1766061747245,0.002,2874.0,2873.7,3.84342322]
[1766061747478,0.556,2874.4,2874.2,0.3636]
[1766061747776,0.556,2874.4,2874.0,2.554]
[1766061748443,0.556,2874.4,2874.0,0.3636]
[1766061749444,0.002,2874.4,2874.0,0.3636]
[1766061749680,0.002,2874.4,2874.2,0.3636]
[1766061750174,0.0012,2874.4,2874.2,0.3636]
[1766061754572,6.392,2875.4,2874.3,0.3636]
[1766061754879,1.1359,2875.1,2874.4,2.1904]
[1766061755098,0.554,2875.0,2874.7,2.554]
[1766061755280,0.554,2874.9,2874.7,2.554]
[1766061755478,0.554,2874.9,2874.7,0.3636]
[1766061755667,0.554,2874.9,2874.5,2.554]
[1766061756190,0.554,2874.9,2874.1,3.47929188]
[1766061756391,0.554,2874.9,2874.3,2.554]
[1766061757050,0.554,2874.9,2874.1,4.23056021]
[1766061757051,0.554,2874.9,2874.1,3.84289188]
[1766061757365,0.554,2874.9,2874.4,2.1904]
[1766061757566,0.554,2874.9,2874.5,0.3636]
[1766061757754,0.554,2874.9,2874.5,2.554]
[1766061758352,1.00386084,2874.9,2874.5,2.554]
[1766061758548,0.44986084,2874.9,2874.5,2.554]
[1766061758865,0.554,2875.0,2874.6,0.3636]
[1766061759391,0.554,2874.9,2874.6,0.3636]
[1766061759561,0.002,2875.1,2874.6,0.3636]
[1766061759888,1.01838023,2875.0,2874.3,0.3636]
[1766061760058,2.17548023,2875.0,2874.5,0.001]
[1766061760257,0.56556251,2874.9,2874.2,2.1904]
[1766061760457,1.1561,2874.8,2874.1,0.3636]
[1766061760688,1.1561,2874.8,2874.1,2.554]
[1766061761089,1.1606,2874.6,2873.9,6.58752762]
[1766061761583,1.1606,2874.6,2874.0,2.554]
[1766061762493,0.03676582,2875.0,2874.2,2.2946]
[1766061762656,0.002,2875.7,2875.1,2.2946]
[1766061762860,1.1797,2876.4,2874.9,0.06608696]
[1766061762861,0.002,2876.4,2875.6,0.3685]
[1766061763060,0.002,2876.4,2875.2,0.06608696]
[1766061763061,0.554,2876.1,2875.8,0.3685]
[1766061763587,0.002,2876.4,2875.8,0.3685]
[1766061763759,0.556,2876.2,2875.2,0.06608696]
[1766061764089,1.3629,2876.0,2875.1,0.46438023]
[1766061764387,1.3629,2876.0,2875.0,2.6631]
[1766061764690,1.3629,2876.0,2875.0,6.14135434]
[1766061765191,1.3629,2876.0,2875.0,2.6631]
[1766061765370,0.46438023,2875.8,2875.0,2.6631]
[1766061765565,0.554,2875.7,2875.0,5.77282986]
[1766061765770,0.554,2875.7,2875.1,0.3685]
[1766061767702,0.554,2875.7,2875.1,3.84662978]
[1766061767991,0.556,2875.7,2875.1,3.84662978]
[1766061768355,0.556,2875.7,2875.1,0.3685]
[1766061769190,0.556,2875.7,2875.1,3.84663062]
[1766061769494,0.556,2875.7,2875.1,0.3685]
[1766061769972,1.9389,2875.7,2875.1,0.3685]
[1766061770176,1.41766582,2875.6,2874.7,1.01838023]
[1766061770380,1.41766582,2875.6,2874.7,4.49700192]
[1766061770699,1.41766582,2875.6,2874.7,4.86550192]
[1766061770991,1.3829,2875.6,2874.7,7.16010192]
[1766061771204,1.9869984,2875.5,2874.7,7.16010192]
[1766061771384,1.3859,2875.4,2874.7,3.68148023]
[1766061771785,1.3859,2875.4,2874.6,3.94308782]
[1766061772190,1.3859,2875.4,2874.6,4.31158782]
[1766061772686,1.3859,2875.4,2874.6,4.31156281]